Cogmind - Beta 9 @@@ ROGUE MODE // 2019.10.26 @ 18:12:41 Player: Finestep Result: Self-destructed Performance ------------- Evolutions (3) 1500 Regions Visited (6) 1200 Robots Destroyed (238) 1190 Value Destroyed (6530) 6530 Prototype IDs (18) 360 Alien Tech Used (0) 0 Bonus (994) 994 TOTAL SCORE: 11774 Bonus ------- High Alert Combat Kills 702 Follower Combat Kills 292 Cogmind --------- Core Integrity 402/700 Matter 0/300 Energy 14/100 System Corruption 13% Temperature Cool (0) Location -7/Waste Parts ------- Power (1) Propulsion (3) Armored Huge Wheel Utility (7) High-capacity Storage Unit High-capacity Storage Unit Enhanced Optical Array Advanced Targeting Computer Kinecellerator Weapon (2) Enhanced Autogun Inventory (20) Micro Nuclear Core Armored Treads Armored Huge Wheel Improved Cooling System Compact Battery (300) High-capacity Matter Pod (200) Advanced Signal Interpreter Advanced Terrain Scan Processor Advanced Targeting Computer Improved Target Analyzer Weapon Cycler Lightning Gun Lightning Gun Advanced EMP Blaster Advanced EMP Blaster Plasma Cutter Chainsword Peak State ------------ Power Light Angular Momentum Engine Propulsion Armored Treads Armored Huge Wheel Utility Large Storage Unit High-capacity Storage Unit High-capacity Storage Unit Enhanced Optical Array Advanced Targeting Computer Weapon Cycler Improved Light Armor Plating Weapon Enhanced Autogun Mini Assault Cannon Inventory Micro Nuclear Core Armored Treads Armored Huge Wheel Improved Cooling System Compact Battery High-capacity Matter Pod Advanced Signal Interpreter Advanced Terrain Scanner Advanced Terrain Scan Processor Advanced Targeting Computer Heavy Armor Plating Hacking Suite Lightning Gun Lightning Gun Improved EM Pulse Cannon Improved EM Pulse Cannon Improved EM Pulse Cannon Enhanced Autogun Advanced EMP Blaster Advanced EMP Blaster Precision Rocket Launcher Improved Datajack Plasma Cutter Chainsword [Rating: 51] Favorites ----------- Power Cooled Ion Engine Engine Cooled Ion Engine Propulsion Armored Huge Wheel Treads Light Treads Wheel Armored Huge Wheel Utility High-capacity Storage Unit Device Weapon Cycler Storage High-capacity Storage Unit Processor Advanced Targeting Computer Hackware Hacking Suite Protection Light Armor Plating Weapon Enhanced Autogun Energy Gun Shock Rifle Energy Cannon Advanced Beam Cannon Ballistic Gun Enhanced Autogun Ballistic Cannon Assault Cannon Launcher Precision Rocket Launcher Special Weapon Mining Laser Slashing Weapon Katana Special Melee Weapon Improved Datajack Build | -11 -10 -9 -8 -8 -7 -7 ------- Run | Scr Mat Mat Mat Sto Fac Was Slots Evolved 6 | . . 2 2 . 2 . Power . | . . . . . . . Propulsion 1 | . . . 1 . . . Utility 5 | . . 2 1 . 2 . Weapon . | . . . . . . . Parts Attached 242 | 7 28 58 46 45 55 3 Power 14 | 1 3 2 3 2 3 . Engine 14 | 1 3 2 3 2 3 . Core . | . . . . . . . Reactor . | . . . . . . . Propulsion 43 | 2 6 13 15 4 3 . Treads 23 | . . 7 12 3 1 . Leg . | . . . . . . . Wheel 20 | 2 6 6 3 1 2 . Hover . | . . . . . . . Flight . | . . . . . . . Utility 55 | 1 6 9 12 10 15 2 Device 7 | . . . . 3 3 1 Storage 12 | 1 5 3 2 . 1 . Processor 5 | . 1 . 1 . 3 . Hackware 2 | . . . . . 2 . Protection 29 | . . 6 9 7 6 1 Artifact . | . . . . . . . Weapon 130 | 3 13 34 16 29 34 1 Energy Gun 29 | 2 4 8 4 2 9 . Energy Cannon 10 | . 1 . . 2 7 . Ballistic Gun 44 | 1 5 19 7 5 6 1 Ballistic Cannon 15 | . . . . 7 8 . Launcher 3 | . . . . 3 . . Special Weapon 15 | . 3 7 5 . . . Impact Weapon . | . . . . . . . Slashing Weapon 11 | . . . . 8 3 . Piercing Weapon . | . . . . . . . Special Melee Weapon 3 | . . . . 2 1 . Unidentified Prototypes 11 | . . 2 1 4 4 . Parts Lost 33 | . 10 5 3 6 6 3 Power 6 | . 3 1 . 1 1 . Propulsion 8 | . 1 3 2 1 1 . Utility 7 | . . 1 . 2 2 2 Weapon 12 | . 6 . 1 2 2 1 Highest Loss Streak 4 | . 3 3 1 4 2 3 Average Slot Usage (%) 92 | . 95 97 95 89 90 80 Engine 9 | . 13 9 9 8 7 5 Treads 8 | . . 4 14 9 7 5 Wheel 11 | . 27 17 8 8 7 7 Device 1 | . . . . 1 4 1 Storage 27 | . 26 33 27 27 23 20 Processor 5 | . 1 . 7 . 15 15 Protection 9 | . . 10 10 15 6 11 Energy Gun 3 | . 11 4 3 . 2 . Energy Cannon 2 | . 4 . . 3 3 . Ballistic Gun 10 | . 9 16 14 9 6 1 Ballistic Cannon 1 | . . . . 3 1 11 Naked Turns . | . . . . . . . Heaviest Build 115 | 10 42 94 104 106 115 114 Greatest Support 60 | 32 32 40 60 28 28 28 Greatest Overweight (x) 10 | . 2 9 10 4 4 4 Average Overweight (x) 2 | . . 3 3 3 3 3 Largest Inventory Capacity 26 | 6 16 26 26 26 26 26 Average Capacity 23 | 5 11 22 26 26 26 24 Most Carried 26 | 5 16 26 26 26 26 26 Average Carried 23 | 2 11 22 25 24 25 24 Final Capacity 20 | . . . . . . 20 Final Carried 18 | . . . . . . 18 Class Distribution -------------------- 82% | Hauler-Mutant 9% | Mutant 6% | Commander-Mutant Dominant Class ---------------- Mutant | -10/Materials Hauler-Mutant | -9/Materials Hauler-Mutant | -8/Materials Hauler-Mutant | -8/Storage Hauler-Mutant | -7/Factory Hauler-Mutant | -7/Waste Resources | -11 -10 -9 -8 -8 -7 -7 ----------- Run | Scr Mat Mat Mat Sto Fac Was Matter Collected 5934 | 224 728 1455 1394 980 1153 . Remotely . | . . . . . . . Salvage Created 9253 | 49 1051 1605 2314 1316 2735 183 Parts 545 | 6 75 133 146 68 117 . Haulers Intercepted 15 | . 2 4 6 . 3 . Recyclers Shooed 10 | . 1 1 2 5 1 . Parts Field Recycled . | . . . . . . . Retrieved Matter . | . . . . . . . Parts Self-Destructed . | . . . . . . . Prevented . | . . . . . . . Kills | -11 -10 -9 -8 -8 -7 -7 ------- Run | Scr Mat Mat Mat Sto Fac Was Combat Hostiles Destroyed 157 | . 20 39 39 21 37 1 Melee 1 | . . . . 1 . . Guns 118 | . 16 38 39 11 14 . Cannons 33 | . 3 . . 9 20 1 AOE 3 | . 1 1 . . 1 . Classes Destroyed 16 | 1 7 2 3 1 1 1 Worker 11 | . 2 5 1 1 2 . Builder 7 | . 3 2 1 1 . . Tunneler 2 | 2 . . . . . . Hauler 15 | . 2 4 6 . 3 . Recycler 18 | . 2 2 4 4 6 . Operator 13 | . . 5 3 2 3 . Watcher 15 | . 2 4 3 2 4 . Swarmer 42 | . 5 22 13 . 2 . Grunt 69 | . 15 10 14 13 17 . Brawler 3 | . . . 1 . 2 . Duelist 2 | . . . . 1 1 . Protector 1 | . . . 1 . . . Sentry 32 | . . 7 9 7 9 . Hunter 1 | . . . 1 . . . Programmer 6 | . . . . . 6 . Compactor 1 | . . . . . . 1 Best Kill Streak 11 | 2 11 8 5 5 6 1 Combat Bots Only 6 | . 4 6 4 5 6 1 Max Kills in Single Turn 2 | 1 1 2 2 2 2 1 Gunslinging 1 | . . 1 1 . . . Exploded 1 | . 1 1 . . 1 . Melee 1 | . . . . 1 . . Uniques/NPCs Destroyed . | . . . . . . . Combat | -11 -10 -9 -8 -8 -7 -7 -------- Run | Scr Mat Mat Mat Sto Fac Was Damage Taken 8652 | . 1112 1467 2119 1202 2623 129 Core 1185 | . 238 238 204 207 298 . Absorbed by Shields 28 | . . . . . 28 . Core Remaining (%) 42 | 100 4 40 . 25 . . Volleys Fired 652 | 2 98 140 168 83 142 19 Largest 2 | 2 2 2 2 2 2 2 Hottest 110 | 60 105 100 100 93 110 96 Shots Fired 1246 | 4 178 258 322 164 282 38 Gun 998 | 4 157 236 315 102 182 2 Cannon 215 | . 17 . . 62 100 36 Launcher . | . . . . . . . Special 33 | . 4 22 7 . . . Kinetic 928 | 2 87 209 267 154 171 38 Thermal 166 | 2 62 22 7 10 63 . Explosive . | . . . . . . . Electromagnetic 152 | . 29 27 48 . 48 . Robot Hit Streak 22 | 2 13 11 17 18 22 20 Robot Miss Streak 13 | . 4 13 5 6 6 3 Penetration Max 1 | . . . 1 1 . . Secondary Targets 13 | . 3 3 6 . 1 . Max Gunslinging Chain 1 | . 1 1 1 . 1 . Shots Hit Robots 876 | 2 122 161 230 123 211 27 Core Hits 369 | 2 51 83 89 49 91 4 Critical Hits 13 | . . 2 4 1 2 4 Critical Kills 3 | . . 1 . 1 1 . Critical Parts Destroyed 6 | . . 1 4 . 1 . Melee Attacks 31 | . . . . 23 8 . Impact . | . . . . . . . Slashing 30 | . . . . 23 7 . Piercing . | . . . . . . . Sneak Attacks 7 | . . . . 5 2 . Combat Hostiles . | . . . . . . . Follow-up Attacks . | . . . . . . . Damage Inflicted 17004 | 22 1586 2423 3962 2880 5182 949 Guns 11084 | 22 1209 2280 3926 1238 2372 37 Cannons 4694 | . 175 . . 1113 2494 912 Explosions 484 | . 178 87 36 . 183 . Melee 642 | . . . . 509 133 . Ramming 52 | . . 32 . 20 . . Kinetic 11341 | . 694 1996 3195 2181 2326 949 Thermal 2562 | 22 711 111 36 170 1512 . Explosive 17 | . . . . . 17 . Electromagnetic 2390 | . 181 284 731 . 1194 . Impact . | . . . . . . . Slashing 642 | . . . . 509 133 . Piercing . | . . . . . . . Highest Corruption 13 | . . . . . . 13 Average Corruption 9 | . . . . . . 9 Corruption Purged . | . . . . . . . Effects 14 | . . . . . . 14 Message Errors 3 | . . . . . . 3 Matter Fused 1 | . . . . . . 1 Heat Flow Errors 1 | . . . . . . 1 Misfires 2 | . . . . . . 2 Targeting Errors 7 | . . . . . . 7 Overload Shots . | . . . . . . . Overflow Damage 589 | . 86 9 . 327 166 1 Projectiles 72 | . . . . 20 51 1 Explosions 98 | . 86 . . . 12 . Melee 419 | . . 9 . 307 103 . Knockbacks 21 | . . . . 14 7 . Impact . | . . . . . . . Kinetic 17 | . . . . 11 6 . Secondary 4 | . . . . 3 1 . Self-Inflicted Damage 302 | . 133 16 32 6 115 . Shots 5 | . 2 . 1 . 2 . Rammed 5 | . . 1 . 4 . . Targets Rammed 5 | . . 1 . 4 . . Kicked . | . . . . . . . Crushed . | . . . . . . . Highest Temperature 252 | . 192 123 168 161 236 252 Average Temperature 43 | . 50 27 19 33 63 92 Received Heat Transfer 3015 | . 474 360 846 558 777 . Siege Activations . | . . . . . . . Robots Corrupted 2 | . . . . . 2 . Combat Hostiles 2 | . . . . . 2 . Parts Fried 12 | . 1 1 2 . 8 . Impact Corruptions 1 | . . 1 . . . . Robots Melted . | . . . . . . . Combat Hostiles . | . . . . . . . Parts Melted 4 | . 1 . . . 3 . Heat Transferred 4258 | 50 1403 200 50 296 2259 . Parts Sabotaged . | . . . . . . . Parts Stolen . | . . . . . . . Parts Stripped . | . . . . . . . Power Chain Reactions 5 | . 1 1 1 . 2 . Missiles Intercepted . | . . . . . . . Alert | -11 -10 -9 -8 -8 -7 -7 ------- Run | Scr Mat Mat Mat Sto Fac Was Peak Influence 822 | 10 254 604 822 627 735 202 Average Influence 361 | 1 128 371 519 277 421 194 Maximum Alert Level 3 | . 1 2 3 2 3 1 Low Security (%) 30 | . . . . . . . Level 1 26 | . . . . . . . Level 2 37 | . . . . . . . Level 3 4 | . . . . . . . Level 4 . | . . . . . . . Level 5 . | . . . . . . . High Security . | . . . . . . . Max Security . | . . . . . . . Squads Dispatched 38 | . 5 5 6 2 20 . Investigation 16 | . 5 3 2 . 6 . Extermination 5 | . . . . . 5 . Reinforcement 11 | . . 2 2 2 5 . Assault 2 | . . . 1 . 1 . Garrison 4 | . . . 1 . 3 . Intercept . | . . . . . . . Construction Impeded 1 | . . 1 . . . . Haulers Reinforced 2 | . . . . . 2 . Stealth | -11 -10 -9 -8 -8 -7 -7 --------- Run | Scr Mat Mat Mat Sto Fac Was Distress Signals 11 | . 2 3 4 1 1 . Communications Jammed . | . . . . . . . Distress Signals . | . . . . . . . Times Spotted 259 | . 32 62 70 35 58 2 Peak Tracking Total 9 | . 4 5 6 9 5 2 Tactical Retreats 22 | . 5 3 8 2 4 . Traps | -11 -10 -9 -8 -8 -7 -7 ------- Run | Scr Mat Mat Mat Sto Fac Was Traps Triggered 8 | . 2 1 1 . 4 . Indirectly . | . . . . . . . Trap Hack Attempts 17 | . . . . 17 . . Triggered . | . . . . . . . Disarmed . | . . . . . . . Reprogrammed 4 | . . . . 4 . . Reused . | . . . . . . . Traps Extracted . | . . . . . . . Installed . | . . . . . . . Triggered . | . . . . . . . Machines | -11 -10 -9 -8 -8 -7 -7 ---------- Run | Scr Mat Mat Mat Sto Fac Was Machines Disabled 13 | . 1 3 3 4 2 . Max in Single Turn 1 | . 1 1 1 1 1 . Garrison Access 3 | . . . 1 1 1 . Machines Sabotaged . | . . . . . . . Garrisons Compromised . | . . . . . . . Overloaded Fab Kills . | . . . . . . . Fab Network Shutdowns . | . . . . . . . Hacking | -11 -10 -9 -8 -8 -7 -7 --------- Run | Scr Mat Mat Mat Sto Fac Was Machines Accessed 61 | . 8 15 15 14 9 . Terminals 41 | . 6 11 10 10 4 . Fabricators 1 | . . . . . 1 . Repair Stations 5 | . . 2 1 1 1 . Recycling Units 7 | . 2 1 1 2 1 . Scanalyzers 3 | . . 1 2 . . . Garrison Access 4 | . . . 1 1 2 . Total Hacks 200 | . 29 51 47 45 28 . Successful 115 | . 16 35 30 22 12 . Failed 83 | . 12 15 17 23 16 . Catastrophic 13 | . 1 2 3 5 2 . Database Lockouts 3 | . 1 2 . . . . Manual 101 | . 25 21 19 23 13 . Terminals 139 | . 25 34 33 35 12 . Fabricators 3 | . . . . . 3 . Repair Stations 12 | . . 4 2 3 3 . Recycling Units 20 | . 4 4 2 5 5 . Scanalyzers 17 | . . 9 8 . . . Garrison Access 9 | . . . 2 2 5 . Terminal Hacks 53 | . 8 16 10 14 5 . Robot Schematic 2 | . 1 1 . . . . Robot Analysis 5 | . 2 2 1 . . . Prototype ID Bank 5 | . 1 2 2 . . . Open Door 3 | . . . . 3 . . Branch Access Points 3 | . . 1 1 . 1 . Emergency Access Points 1 | . 1 . . . . . Terminal Index 2 | . . 1 1 . . . Alert Level 4 | . . 1 1 2 . . Unreport Threat 9 | . . 3 1 2 3 . Locate Traps 3 | . . . . 3 . . Surveillance Status 1 | . . . . 1 . . Patrol Status 1 | . . 1 . . . . Recall Investigation 1 | . . . 1 . . . Recall Assault 1 | . . . . . 1 . Hauler Manifests 3 | . 1 1 . 1 . . Zone Layout 9 | . 2 3 2 2 . . Fabricator Hacks 2 | . . . . . 2 . Load Schematic 1 | . . . . . 1 . Build 1 | . . . . . 1 . Repair Station Hacks 9 | . . 4 2 2 1 . Scan Component 5 | . . 2 1 1 1 . Repair 4 | . . 2 1 1 . . Recycling Unit Hacks 3 | . 2 . 1 . . . Retrieve Components 3 | . 2 . 1 . . . Scanalyzer 16 | . . 8 8 . . . Insert Component 8 | . . 4 4 . . . Analyze 8 | . . 4 4 . . . Garrison Access Hacks 2 | . . . 1 1 . . Seal Access 2 | . . . 1 1 . . Unauthorized Hacks 76 | . 13 15 22 12 14 . Terminals 22 | . 4 6 6 5 1 . Track 6 | . 1 2 1 2 . . Assimilate 2 | . . 1 . . 1 . Botnet 12 | . 3 2 4 3 . . Disrupt 2 | . . 1 1 . . . Fabricators 1 | . . . . . 1 . Siphon 1 | . . . . . 1 . Repair Stations . | . . . . . . . Recycling Units 5 | . 2 1 1 . 1 . Tunnel 5 | . 2 1 1 . 1 . Scanalyzers . | . . . . . . . Garrison Access 2 | . . . 1 . 1 . Reprogram 1 | . . . 1 . . . Jam 1 | . . . . . 1 . Data Cores Recovered 7 | . . 5 1 1 . . Used 2 | . . 1 . 1 . . Hacking Detections 50 | . 5 10 13 14 8 . Full Trace Events 6 | . . 2 1 . 3 . Feedback Events . | . . . . . . . Feedback Blocked . | . . . . . . . Robot Schematics Acquired 2 | . 1 1 . . . . Robots Built . | . . . . . . . Matter . | . . . . . . . Time . | . . . . . . . Total Robot Build Rating . | . . . . . . . Part Schematics Acquired 7 | . . 4 3 . . . Parts Built 1 | . . . . . 1 . Matter 124 | . . . . . 124 . Time 62 | . . . . . 62 . Total Part Build Rating 2 | . . . . . 2 . Parts Repaired 4 | . . 2 1 1 . . Time 103 | . . 64 26 13 . . Parts Recycled . | . . . . . . . Recycled Matter . | . . . . . . . Retrieved Matter . | . . . . . . . Retrieved Components 16 | . 10 . 6 . . . Parts Scanalyzed 7 | . . 4 3 . . . Part Schematics Acquired 7 | . . 4 3 . . . Parts Damaged 1 | . . . 1 . . . Bothacking | -11 -10 -9 -8 -8 -7 -7 ------------ Run | Scr Mat Mat Mat Sto Fac Was Used RIF Installer . | . . . . . . . Robots Hacked 1 | . . . . . 1 . Non-combat 1 | . . . . . 1 . Combat . | . . . . . . . Robot Hacks Applied 1 | . . . . . 1 . find_chute 1 | . . . . . 1 . Relay Couplers Released 3 | . . . . . 3 . Programmers 3 | . . . . . 3 . Robots Rewired 1 | . . 1 . . . . Allies Hacked . | . . . . . . . Hacks Repelled . | . . . . . . . Allies | -11 -10 -9 -8 -8 -7 -7 -------- Run | Scr Mat Mat Mat Sto Fac Was Total Allies 13 | . . 1 1 10 1 . Largest Group 10 | . . 1 1 10 9 . Highest-Rated Group 173 | . . 15 15 173 157 . Highest-Rated Ally 29 | . . 15 15 29 29 . Total Orders 4 | . . 2 . 2 . . STAY 1 | . . . . 1 . . GOTO 1 | . . 1 . . . . FOLLOW 2 | . . 1 . 1 . . Ally Attacks 57 | . . 3 9 14 31 . Total Damage 965 | . . 69 215 186 495 . Kills 11 | . . 2 2 2 5 . Allies Corrupted . | . . . . . . . Allies Melted . | . . . . . . . Intel | -11 -10 -9 -8 -8 -7 -7 ------- Run | Scr Mat Mat Mat Sto Fac Was Robot Analysis Total 5 | . 2 2 1 . . . Derelict Logs Recovered . | . . . . . . . Drone Launches 2 | . . . . 2 . . Drone Recoveries . | . . . . . . . Exploration | -11 -10 -9 -8 -8 -7 -7 ------------- Run | Scr Mat Mat Mat Sto Fac Was Turns Passed 11794 | 65 1214 2146 2556 2931 2688 194 Spaces Moved 6148 | 46 822 1186 1353 1037 1606 98 Core 3 | 3 . . . . . . Treads 710 | . . 136 322 251 1 . Legs . | . . . . . . . Wheels 5435 | 43 822 1050 1031 786 1605 98 Hover . | . . . . . . . Flight . | . . . . . . . Fastest Speed 50 | 50 90 100 110 130 130 120 Average Speed 131 | 96 95 122 142 156 131 133 Slowest Speed 260 | 100 120 200 260 240 250 140 Overloaded Moves . | . . . . . . . Propulsion Burnouts . | . . . . . . . Robots Hopped . | . . . . . . . Cave-ins Triggered . | . . . . . . . Exploration Rate (%) 62 | 3 86 89 86 93 45 33 Regions Visited 6 Branch Regions 1 Pre-discovered Areas 5 | . 2 1 1 . 1 . Known Exits Taken 1 | . . . 1 . . . Unknown Exits Taken 4 | 1 1 1 . 1 . . Scrap Searched . | . . . . . . . Spaces Dug 49 | . 1 20 7 15 6 . Terrain Destroyed 125 | . 34 21 13 22 34 1 Melee 21 | . . . . 15 6 . Projectile 43 | . 2 21 9 7 3 1 AOE 61 | . 32 . 4 . 25 . Actions | -11 -10 -9 -8 -8 -7 -7 --------- Run | Scr Mat Mat Mat Sto Fac Was Total 8648 | 59 1059 1583 1698 2163 1961 125 Wait 1246 | . 81 118 45 917 80 5 Move 6143 | 45 821 1185 1352 1036 1606 98 Hop . | . . . . . . . Pick Up 129 | 4 19 35 32 14 25 . Fast Attach 82 | 7 9 20 13 13 20 . Attach 43 | . 7 6 6 11 11 2 Detach 11 | 1 2 1 . 4 3 . Swap 118 | . 12 32 27 21 25 1 Drop 163 | . 10 42 55 19 37 . Fire 652 | 2 98 140 168 83 142 19 Melee 31 | . . . . 23 8 . Ram 2 | . . 1 . 1 . . Kick . | . . . . . . . Crush 3 | . . . . 3 . . Escape Stasis 4 | . . . . . 4 . Rewire 3 | . . 3 . . . . Trap 17 | . . . . 17 . . Miscellaneous 1 | . . . . 1 . . Route ------- -11/Scrapyard -10/Materials (discovered 4 exits: *Mat x3 / [*Min]) -9/Materials (discovered 3 exits: *Mat x2 / *Min) -8/Materials (discovered 5 exits: *Fac x3 / *Sto x2) -8/Storage -7/Factory (discovered 4 exits: [*Fac x2] / Low x2) -7/Waste History --------- Turn | Location | Event 9 | -11/Scrapyard | Discovered new exit (range 15) 66 | -11/Scrapyard | Entered Materials 325 | -10/Materials | Build established: Mutant 520 | -10/Materials | Discovered new exit (range 5) 658 | -10/Materials | Lost 3 parts (1p2w) 683 | -10/Materials | Discovered new exit (range 11) 861 | -10/Materials | Discovered new exit (range 15) 1044 | -10/Materials | Core integrity fell below 50% 1073 | -10/Materials | Lost 3 parts (1p1n1w) 1160 | -10/Materials | Discovered new exit (range 16) 1249 | -10/Materials | Central database locked down 1264 | -10/Materials | Core integrity fell below 20% 1280 | -10/Materials | Entered another Materials area 1280 | -9/Materials | Evolved 2 slots: Utility x2 1602 | -9/Materials | Build established: Hauler-Mutant 1639 | -9/Materials | Discovered new exit (range 14) 1940 | -9/Materials | Repaired Hpw. Shotgun 2094 | -9/Materials | Lost 3 parts (1p1n1u) 2346 | -9/Materials | Discovered new exit (range 14) 2670 | -9/Materials | Repaired Lgt. Armor Plating 2978 | -9/Materials | Central database locked down 3255 | -9/Materials | Identified exit to Mines 3283 | -9/Materials | Core integrity fell below 50% 3390 | -9/Materials | Discovered new exit (range 13) 3426 | -9/Materials | Entered another Materials area 3426 | -8/Materials | Evolved 2 slots: Propulsion x1, Utility x1 3428 | -8/Materials | Discovered new exit (range 15) 3463 | -8/Materials | Repaired Lgt. Armor Plating 3518 | -8/Materials | Identified exit to Storage 3923 | -8/Materials | Discovered new exit (range 20) 5166 | -8/Materials | Discovered new exit (range 16) 5291 | -8/Materials | Discovered new exit (range 16) 5308 | -8/Materials | Garrison activated, responded to threat 5826 | -8/Materials | First assault squad dispatched 5982 | -8/Materials | Entered Storage 6153 | -8/Storage | Core integrity fell below 50% 6370 | -8/Storage | Lost 4 parts (1p1u2w) 6908 | -8/Storage | Repaired Core Shielding 8490 | -8/Storage | Assisted by bots powering up and referring to "LRC-V3" 8558 | -8/Storage | Discovered new exit (range 15) 8792 | -8/Storage | Build established: Commander-Mutant 8913 | -8/Storage | Entered Factory 8913 | -7/Factory | Accompanied by 9 allies 8913 | -7/Factory | Evolved 2 slots: Utility x2 9291 | -7/Factory | Fabricated Med. Armor Plating? 9501 | -7/Factory | Build established: Hauler-Mutant 9559 | -7/Factory | Discovered new exit (range 8) 9641 | -7/Factory | Garrison activated, responded to threat 10513 | -7/Factory | First assault squad dispatched 10843 | -7/Factory | Identified exit to Lower Caves 11009 | -7/Factory | Discovered new exit (range 14) 11601 | -7/Factory | Sucked down chute 11601 | -7/Factory | Entered Waste 11616 | -7/Waste | EMP discharged 11630 | -7/Waste | Spotted C-40 Crusher 11654 | -7/Waste | Spotted C-40 Crusher 11695 | -7/Waste | Destroyed C-40 Crusher 11716 | -7/Waste | EMP discharged 11716 | -7/Waste | System corruption reached 10% 11718 | -7/Waste | Spotted C-40 Crusher 11742 | -7/Waste | Crushed by Compactor (1 part destroyed, 2 dropped) 11747 | -7/Waste | Crushed by Compactor (1 part destroyed, 1 dropped) 11759 | -7/Waste | Crushed by Compactor (1 part destroyed, 1 dropped) 11788 | -7/Waste | Spotted C-40 Crusher 11790 | -7/Waste | Lost 3 parts (2u1w) 11795 | -7/Waste | Self-destructed Last Messages --------------- 11735_ System corrupted: Gauss Cannon targeting data glitched. 11735_ Slug penetrates C-40 Crusher. 11738_ System corrupted: Gauss Cannon targeting data glitched. 11740_ II4E1/ ELBVJDS:I%W MQSAHP4IYF/TC |OE8C 11742_ Hrd. Medium Armor Plating crushed. 11742_ Lgt. Angular Momentum Engine crushed. 11742_ Lrg. Storage Unit crushed. 11745_ Mni. Assault Cannon crushed. 11747_ Lrn. Terrain Scanner crushed. 11747_ Imp. Light Armor Plating crushed. 11747_ Arm. Treads crushed. 11752_ System corrupted: Gauss Cannon targeting data glitched. 11752_ Destroyed Dynamic Insulation System. 11755_ System corrupted: Gauss Cannon targeting data glitched. 11755_ Slug penetrates C-40 Crusher. 11756_ System corrupted: Heat flow error (+185). 11758_ Slug penetrates C-40 Crusher. 11759_ Gauss Cannon crushed. 11773_ ZOODVDY/WB=0IFWT4Z2%7K6V 11773_ System corrupted: Enh. Autogun targeting data glitched. Map ----- +----------------------------------------------------+ | ?????????????????????????????????????????????????? | | ?????????????????????????????????????????????????? | | ?????????????????????????????????????????????????? | | ?????????????????????????????????????????????????? | | ?????????????????????????????????????????????????? | | ?????????????????????????????????????????????????? | | ?????????????????????????????????????????????????? | | ?????????????????????????????????????????????????? | | ?????????????????????????????????????????????????? | | ?????????????????????????????????????????????????? | | ?????????????????????????????????????????????????? | | ?????????????????????????????????????????????????? | | ?????????????????????????????????????????????????? | | ?????????????????????????????????????????????????? | | ?????????????????????????????????????????????????? | | ?????????????????????????????????????????????????? | | ?????????????????????????????????????????????????? | | ?????????????????????????????????????????????????? | | ?????????????????????????????????????????????????? | | ?????????????????????????????????????????????????? | | ?????????????????????????????????????????????????? | | ?????????????????????????????????????????????????? | | ?????????????????????????????????????????????????? | | ????????????????????????######???????????????????? | | ????????????????????????#]*/]#???????????????????? | | ??????????############??#@! #???????????????????? | | ??????????# #??# #???????????????????? | | ??????????# #??# #???????????????????? | | ??????????# #### #???????????????????? | | ??????????# #???????????????????? | | ??????????# #???????????????????? | | ??????????# #???????????????????? | | ??????????# #???????????????????? | | ??????????# #### #???????????????????? | | ??????????# #??# #???????????????????? | | ??????????# #??# #???????????????????? | | ??????????############??# #???????????????????? | | ????????????????????????# #???????????????????? | | ??????????????????????? ????????????? | | ??????????????????????# #???????? | | ??????????????????????# C #???????? | | ??????????????????????# CC #???????? | | ??????????????????????### ######## #???????? | | ????????????????????????# #???????? #???????? | | ????????????????????????# #?????????? #???????? | | ????????????????????????# #???????????????????? | | ????????????????????????# #???????????????????? | | ???????????????????????? ! #???????????????????? | | ???????????????????????? ]#???????????????????? | | ???????????????????????? #???????????????????? | +----------------------------------------------------+ Best States ------------- Heat Dissipation 48 Energy Generation 18 Energy Capacity 290 Matter Stores 300 Matter Capacity 500 Sight Range 22 Terrain Scan Range 20 Terrain Scan Density 10 Armor Coverage 600 Resistance: KI 20 Resistance: EM 15 Core Shielding 20 Weapon Cycling 15 Evasion (%) 42 Targeting Accuracy 8 Recoil Reduction 3 Kinecelleration 30 Offensive Hacking 20 Item Schematics ----------------- Med. Armor Plating | -9/Materials | Scanalyzed Lrg. Storage Unit | -9/Materials | Scanalyzed Transport Network Coupler | -9/Materials | Scanalyzed Hacking Suite | -9/Materials | Scanalyzed Arm. Huge Wheel | -8/Materials | Scanalyzed Enh. Autogun | -8/Materials | Scanalyzed Hvy. Armor Plating | -8/Materials | Scanalyzed Robot Schematics ------------------ O-16 Technician | -10/Materials | Hacked I-25 Savior | -9/Materials | Hacked Fabricated ------------ Med. Armor Plating | x1 | -7/Factory Alien Tech Used ----------------- None Achievements -------------- None Challenges ------------ None Game ------ Seed CompactAbsorptionSource Manual? 0 Play Time 01:42:28 Cumulative 235.2 hours Start 2019.10.26 @ 16:29:57 End 2019.10.26 @ 18:12:41 Sessions 1 Manual Loads 0 Difficulty Rogue Special Mode None Game No. 189 Rogue 189 Adventurer 0 Explorer 0 Win Type - Total 3 Types 3/0/0/0/0/0/0 Lore% 73 Gallery% 76 Achievement% 53 Wizard Run 0 Options --------- ASCII 0 Keyboard 0 Movement Mouse Keybinds 0 Fullscreen 2 Font 24/Smallcaps Map View 76x50 Tactical HUD 1 Map Filters NONE Filters NONE Steam 1 RUN: eb36779a-9ed5-4e06-a125-173d4b7d2897